[Event "Early-Titled-Tuesday-Blitz-May-14-2024"]
[Site "Chess.com"]
[Date "2024.05.14"]
[Round "2"]
[White "NewBornNow"]
[Black "omer1997"]
[Result "0-1"]
[WhiteElo "2750"]
[BlackElo "2536"]
[TimeControl "180+1"]
[EndTime "8:15:58 PDT"]
[Termination "omer1997 won by resignation"]

1. e4 {[%clk 0:03:00.9]} 1... e5 {[%clk 0:03:00.1]} 2. Nf3 {[%clk 0:02:59.8]}
2... Nf6 {[%clk 0:03:01]} 3. Nc3 {[%clk 0:02:57]} 3... Nc6 {[%clk 0:03:00.8]} 4.
Bb5 {[%clk 0:02:55.5]} 4... Nd4 {[%clk 0:02:58.4]} 5. Bc4 {[%clk 0:02:53.6]}
5... Nxf3+ {[%clk 0:02:46.9]} 6. gxf3 {[%clk 0:02:52.3]} 6... g6 {[%clk
0:02:38.1]} 7. d4 {[%clk 0:02:50.6]} 7... exd4 {[%clk 0:02:37.1]} 8. Qxd4 {[%clk
0:02:50.2]} 8... Bg7 {[%clk 0:02:37.6]} 9. Bg5 {[%clk 0:02:47.7]} 9... h6 {[%clk
0:02:33.9]} 10. Bh4 {[%clk 0:02:26.1]} 10... d6 {[%clk 0:02:26.6]} 11. O-O-O
{[%clk 0:02:22.3]} 11... g5 {[%clk 0:02:22.3]} 12. Bg3 {[%clk 0:02:13.3]} 12...
Nh5 {[%clk 0:02:21.8]} 13. Qd2 {[%clk 0:02:04.5]} 13... Be6 {[%clk 0:02:13.8]}
14. Bxe6 {[%clk 0:01:49.4]} 14... fxe6 {[%clk 0:02:14.7]} 15. h4 {[%clk
0:01:49.4]} 15... Qe7 {[%clk 0:01:31.7]} 16. hxg5 {[%clk 0:01:43.5]} 16... hxg5
{[%clk 0:01:30.6]} 17. Nb5 {[%clk 0:01:30.1]} 17... a6 {[%clk 0:01:16.8]} 18.
Qa5 {[%clk 0:01:28.7]} 18... O-O-O {[%clk 0:01:10.6]} 19. Nd4 {[%clk 0:01:24.6]}
19... Bxd4 {[%clk 0:00:52.6]} 20. Rxd4 {[%clk 0:01:20.6]} 20... Nxg3 {[%clk
0:00:52.6]} 21. Rxh8 {[%clk 0:01:14.2]} 21... Ne2+ {[%clk 0:00:52.5]} 22. Kd2
{[%clk 0:01:13.4]} 22... Nxd4 {[%clk 0:00:52.7]} 0-1

[Event "Early-Titled-Tuesday-Blitz-May-14-2024"]
[Site "Chess.com"]
[Date "2024.05.14"]
[Round "2"]
[White "Tigranpatagonian"]
[Black "AlexPapasimakopoulos"]
[Result "1-0"]
[WhiteElo "2390"]
[BlackElo "2607"]
[TimeControl "180+1"]
[EndTime "8:16:01 PDT"]
[Termination "Tigranpatagonian won by checkmate"]

1. d4 {[%clk 0:02:54.8]} 1... Nf6 {[%clk 0:02:58.3]} 2. c4 {[%clk 0:02:55]} 2...
e6 {[%clk 0:02:50.1]} 3. Nc3 {[%clk 0:02:54.7]} 3... Bb4 {[%clk 0:02:46.7]} 4.
e3 {[%clk 0:02:54.8]} 4... c5 {[%clk 0:02:46.2]} 5. Bd3 {[%clk 0:02:53.6]} 5...
Nc6 {[%clk 0:02:45]} 6. Nf3 {[%clk 0:02:52]} 6... Bxc3+ {[%clk 0:02:45.1]} 7.
bxc3 {[%clk 0:02:51.7]} 7... d6 {[%clk 0:02:46]} 8. O-O {[%clk 0:02:50.6]} 8...
e5 {[%clk 0:02:46.1]} 9. Nd2 {[%clk 0:02:50.2]} 9... O-O {[%clk 0:02:41.2]} 10.
Re1 {[%clk 0:02:49.2]} 10... Re8 {[%clk 0:02:40.6]} 11. d5 {[%clk 0:02:48.6]}
11... Ne7 {[%clk 0:02:40.6]} 12. f4 {[%clk 0:02:40.3]} 12... exf4 {[%clk
0:02:37.6]} 13. exf4 {[%clk 0:02:39.8]} 13... Bg4 {[%clk 0:02:37.8]} 14. Nf3
{[%clk 0:02:24.6]} 14... g6 {[%clk 0:02:35.3]} 15. f5 {[%clk 0:02:13.9]} 15...
Bxf5 {[%clk 0:02:32.8]} 16. Bg5 {[%clk 0:02:13.1]} 16... Bxd3 {[%clk 0:02:24.9]}
17. Qxd3 {[%clk 0:02:03.4]} 17... Nf5 {[%clk 0:02:21.2]} 18. Rxe8+ {[%clk
0:02:01.2]} 18... Qxe8 {[%clk 0:02:22.1]} 19. Bxf6 {[%clk 0:02:00.9]} 19... Qa4
{[%clk 0:02:22.2]} 20. g4 {[%clk 0:01:52.6]} 20... Ng7 {[%clk 0:02:22]} 21. Re1
{[%clk 0:01:51.2]} 21... b5 {[%clk 0:02:21.9]} 22. Re4 {[%clk 0:01:32.5]} 22...
bxc4 {[%clk 0:02:12]} 23. Qe3 {[%clk 0:01:29.1]} 23... Qxa2 {[%clk 0:02:05.9]}
24. Qh6 {[%clk 0:01:25.7]} 24... Qb1+ {[%clk 0:01:57.8]} 25. Re1 {[%clk
0:01:24]} 25... Qxe1+ {[%clk 0:01:58]} 26. Nxe1 {[%clk 0:01:23.2]} 26... Ne8
{[%clk 0:01:58.9]} 27. g5 {[%clk 0:01:18.2]} 27... a5 {[%clk 0:01:57.2]} 28. Nc2
{[%clk 0:01:17]} 28... a4 {[%clk 0:01:57.5]} 29. Na3 {[%clk 0:01:17.2]} 29...
Ra7 {[%clk 0:01:58.1]} 30. Qh3 {[%clk 0:01:15.1]} 30... Ra8 {[%clk 0:01:54]} 31.
Nxc4 {[%clk 0:01:07.5]} 31... h5 {[%clk 0:01:49.9]} 32. Na3 {[%clk 0:01:05.4]}
32... Rb8 {[%clk 0:01:47.8]} 33. Qd7 {[%clk 0:01:03.7]} 33... h4 {[%clk
0:01:41.6]} 34. Qxa4 {[%clk 0:00:59.7]} 34... h3 {[%clk 0:01:41.3]} 35. Qh4
{[%clk 0:00:57.9]} 35... Nxf6 {[%clk 0:01:37]} 36. gxf6 {[%clk 0:00:57.9]} 36...
Rb3 {[%clk 0:01:35.9]} 37. Qh6 {[%clk 0:00:54.9]} 37... Rxa3 {[%clk 0:01:35.7]}
38. Qg7# {[%clk 0:00:54]} 1-0

[Event "Early-Titled-Tuesday-Blitz-May-14-2024"]
[Site "Chess.com"]
[Date "2024.05.14"]
[Round "2"]
[White "Larina_Maria"]
[Black "Flameboard08"]
[Result "1-0"]
[WhiteElo "2399"]
[BlackElo "2719"]
[TimeControl "180+1"]
[EndTime "8:16:05 PDT"]
[Termination "Larina_Maria won by checkmate"]

1. e4 {[%clk 0:03:00.9]} 1... b6 {[%clk 0:02:59.9]} 2. d4 {[%clk 0:03:00.3]}
2... Bb7 {[%clk 0:03:00]} 3. Bd3 {[%clk 0:03:00.8]} 3... e6 {[%clk 0:03:00]} 4.
Qe2 {[%clk 0:03:01.2]} 4... Nf6 {[%clk 0:02:59.8]} 5. Nf3 {[%clk 0:03:00.5]}
5... d5 {[%clk 0:03:00.1]} 6. e5 {[%clk 0:03:00.9]} 6... Ne4 {[%clk 0:03:00.3]}
7. Nbd2 {[%clk 0:03:00.8]} 7... Nxd2 {[%clk 0:02:59.4]} 8. Bxd2 {[%clk
0:03:00.4]} 8... a5 {[%clk 0:02:59.8]} 9. a4 {[%clk 0:02:49.6]} 9... Ba6 {[%clk
0:02:58.6]} 10. O-O {[%clk 0:02:42.2]} 10... Bxd3 {[%clk 0:02:56.8]} 11. Qxd3
{[%clk 0:02:41.8]} 11... Be7 {[%clk 0:02:55.7]} 12. c4 {[%clk 0:02:41.7]} 12...
dxc4 {[%clk 0:02:56]} 13. Qxc4 {[%clk 0:02:41.9]} 13... O-O {[%clk 0:02:56]} 14.
Be3 {[%clk 0:02:39.8]} 14... c6 {[%clk 0:02:51.2]} 15. Nd2 {[%clk 0:02:29]}
15... Qd7 {[%clk 0:02:47.6]} 16. Ne4 {[%clk 0:02:28.8]} 16... Qd5 {[%clk
0:02:36.6]} 17. Qc2 {[%clk 0:02:28.6]} 17... Na6 {[%clk 0:02:33.4]} 18. Nc3
{[%clk 0:02:15]} 18... Qd7 {[%clk 0:02:26.8]} 19. Qe4 {[%clk 0:01:52.4]} 19...
Nb4 {[%clk 0:02:25.2]} 20. Rac1 {[%clk 0:01:46.7]} 20... Kh8 {[%clk 0:02:19.7]}
21. Rfd1 {[%clk 0:01:44.7]} 21... Rac8 {[%clk 0:02:16.3]} 22. h4 {[%clk
0:01:44.6]} 22... Nd5 {[%clk 0:02:14.2]} 23. h5 {[%clk 0:01:37.9]} 23... h6
{[%clk 0:02:12.7]} 24. Qg4 {[%clk 0:01:15.3]} 24... Rcd8 {[%clk 0:02:01.8]} 25.
Ne4 {[%clk 0:01:08]} 25... Nxe3 {[%clk 0:01:50.9]} 26. fxe3 {[%clk 0:01:08.9]}
26... Qd5 {[%clk 0:01:50.1]} 27. Rf1 {[%clk 0:01:01.6]} 27... Qb3 {[%clk
0:01:47.2]} 28. Rc3 {[%clk 0:00:53.1]} 28... Qxa4 {[%clk 0:01:44.9]} 29. Nf6
{[%clk 0:00:41.5]} 29... gxf6 {[%clk 0:01:27.2]} 30. exf6 {[%clk 0:00:41.4]}
30... Bd6 {[%clk 0:01:27.1]} 31. Qg7# {[%clk 0:00:39.3]} 1-0

[Event "Early-Titled-Tuesday-Blitz-May-14-2024"]
[Site "Chess.com"]
[Date "2024.05.14"]
[Round "2"]
[White "th3d4rkness"]
[Black "YouShallNotPass001"]
[Result "1-0"]
[WhiteElo "2185"]
[BlackElo "2532"]
[TimeControl "180+1"]
[EndTime "8:16:06 PDT"]
[Termination "th3d4rkness won by checkmate"]

1. e4 {[%clk 0:03:00.9]} 1... Nf6 {[%clk 0:03:00.9]} 2. e5 {[%clk 0:03:00.2]}
2... Ne4 {[%clk 0:03:01.6]} 3. d3 {[%clk 0:02:57]} 3... Nc5 {[%clk 0:03:01.2]}
4. d4 {[%clk 0:02:47.3]} 4... Ne6 {[%clk 0:03:01.4]} 5. f4 {[%clk 0:02:44.2]}
5... c5 {[%clk 0:02:59.8]} 6. d5 {[%clk 0:02:42.9]} 6... Nc7 {[%clk 0:03:00.2]}
7. c4 {[%clk 0:02:41.8]} 7... d6 {[%clk 0:03:00.1]} 8. Nf3 {[%clk 0:02:40.8]}
8... e6 {[%clk 0:03:00.2]} 9. Nc3 {[%clk 0:02:37.4]} 9... Be7 {[%clk 0:03:00.2]}
10. Be2 {[%clk 0:02:31.1]} 10... O-O {[%clk 0:03:00]} 11. O-O {[%clk 0:02:29.9]}
11... Nd7 {[%clk 0:02:58.6]} 12. Be3 {[%clk 0:02:15.1]} 12... Nb6 {[%clk
0:02:48.8]} 13. dxe6 {[%clk 0:01:59.2]} 13... Bxe6 {[%clk 0:02:49.7]} 14. b3
{[%clk 0:01:56.9]} 14... d5 {[%clk 0:02:45]} 15. cxd5 {[%clk 0:01:49.8]} 15...
Nbxd5 {[%clk 0:02:45.9]} 16. Bd2 {[%clk 0:01:43]} 16... Nxc3 {[%clk 0:02:44.3]}
17. Bxc3 {[%clk 0:01:41.8]} 17... Nd5 {[%clk 0:02:44.7]} 18. Bd2 {[%clk
0:01:34]} 18... Qb6 {[%clk 0:02:38.1]} 19. Kh1 {[%clk 0:01:29.5]} 19... Rad8
{[%clk 0:02:36.4]} 20. Qe1 {[%clk 0:01:26.8]} 20... f5 {[%clk 0:02:34.8]} 21.
Ba5 {[%clk 0:01:25.1]} 21... Qc6 {[%clk 0:02:32.5]} 22. Bxd8 {[%clk 0:01:23]}
22... Rxd8 {[%clk 0:02:33.4]} 23. Bc4 {[%clk 0:01:18.3]} 23... Nxf4 {[%clk
0:02:32.2]} 24. Bxe6+ {[%clk 0:01:11.5]} 24... Nxe6 {[%clk 0:02:33.1]} 25. Rd1
{[%clk 0:01:10.6]} 25... Rxd1 {[%clk 0:02:28.6]} 26. Qxd1 {[%clk 0:01:09]} 26...
g6 {[%clk 0:02:28.7]} 27. h3 {[%clk 0:01:00.3]} 27... h5 {[%clk 0:02:23.4]} 28.
Qd2 {[%clk 0:00:58.6]} 28... Kg7 {[%clk 0:02:19.6]} 29. Rd1 {[%clk 0:00:46.4]}
29... Qe4 {[%clk 0:02:19.1]} 30. Qd7 {[%clk 0:00:41.2]} 30... Kf7 {[%clk
0:02:18.3]} 31. Rd6 {[%clk 0:00:38.7]} 31... Nf4 {[%clk 0:01:49.6]} 32. Rf6+
{[%clk 0:00:31.7]} 32... Kg8 {[%clk 0:01:49.2]} 33. Qe8+ {[%clk 0:00:29.1]}
33... Kg7 {[%clk 0:01:48.4]} 34. Qxe7+ {[%clk 0:00:27.6]} 34... Kh6 {[%clk
0:01:48.9]} 35. Qf8+ {[%clk 0:00:27]} 35... Kh7 {[%clk 0:01:47.9]} 36. Rf7#
{[%clk 0:00:27.3]} 1-0

[Event "Early-Titled-Tuesday-Blitz-May-14-2024"]
[Site "Chess.com"]
[Date "2024.05.14"]
[Round "2"]
[White "VerdeNotte"]
[Black "karinachess1"]
[Result "1-0"]
[WhiteElo "2880"]
[BlackElo "2601"]
[TimeControl "180+1"]
[EndTime "8:16:08 PDT"]
[Termination "VerdeNotte won by resignation"]

1. Nf3 {[%clk 0:03:00.9]} 1... Nf6 {[%clk 0:02:59.8]} 2. g3 {[%clk 0:02:58.1]}
2... e6 {[%clk 0:02:55.3]} 3. Bg2 {[%clk 0:02:57.7]} 3... d5 {[%clk 0:02:55.5]}
4. O-O {[%clk 0:02:58.1]} 4... Be7 {[%clk 0:02:50.1]} 5. b3 {[%clk 0:02:58.3]}
5... O-O {[%clk 0:02:48.5]} 6. Bb2 {[%clk 0:02:58.4]} 6... b6 {[%clk 0:02:48.9]}
7. c4 {[%clk 0:02:56.4]} 7... Bb7 {[%clk 0:02:49]} 8. d4 {[%clk 0:02:53.1]} 8...
dxc4 {[%clk 0:02:46.4]} 9. bxc4 {[%clk 0:02:53.2]} 9... c5 {[%clk 0:02:46.6]}
10. d5 {[%clk 0:02:47.1]} 10... exd5 {[%clk 0:02:26.6]} 11. Nh4 {[%clk 0:02:46]}
11... Na6 {[%clk 0:02:06.1]} 12. Nc3 {[%clk 0:02:38.1]} 12... Nc7 {[%clk
0:01:57]} 13. Nf5 {[%clk 0:02:21.2]} 13... Rb8 {[%clk 0:01:52.6]} 14. cxd5
{[%clk 0:02:14.7]} 14... Bd6 {[%clk 0:01:26.3]} 15. Qd2 {[%clk 0:01:55.2]} 15...
Nce8 {[%clk 0:00:44.9]} 16. e4 {[%clk 0:01:45.5]} 16... Bc8 {[%clk 0:00:37.7]}
17. Nxd6 {[%clk 0:01:43.1]} 17... Nxd6 {[%clk 0:00:32.2]} 18. e5 {[%clk
0:01:39.9]} 18... Nc4 {[%clk 0:00:32.2]} 19. Qe2 {[%clk 0:01:39]} 19... Nxb2
{[%clk 0:00:14.4]} 20. exf6 {[%clk 0:01:37.8]} 1-0

[Event "Early-Titled-Tuesday-Blitz-May-14-2024"]
[Site "Chess.com"]
[Date "2024.05.14"]
[Round "2"]
[White "ChristopherYoo"]
[Black "ansko1999"]
[Result "1-0"]
[WhiteElo "3003"]
[BlackElo "2653"]
[TimeControl "180+1"]
[EndTime "8:16:12 PDT"]
[Termination "ChristopherYoo won by resignation"]

1. e4 {[%clk 0:03:00.9]} 1... c5 {[%clk 0:03:00.1]} 2. Nf3 {[%clk 0:02:58.3]}
2... Nf6 {[%clk 0:03:00.1]} 3. e5 {[%clk 0:02:51]} 3... Nd5 {[%clk 0:03:00.1]}
4. Nc3 {[%clk 0:02:51.7]} 4... e6 {[%clk 0:03:00]} 5. Ne4 {[%clk 0:02:51.2]}
5... Nc6 {[%clk 0:02:56.8]} 6. c4 {[%clk 0:02:46.1]} 6... f5 {[%clk 0:02:57.3]}
7. cxd5 {[%clk 0:02:38.5]} 7... fxe4 {[%clk 0:02:57.1]} 8. dxc6 {[%clk
0:02:38.8]} 8... exf3 {[%clk 0:02:57]} 9. Qxf3 {[%clk 0:02:12.5]} 9... dxc6
{[%clk 0:02:55.5]} 10. Bd3 {[%clk 0:02:09.3]} 10... g6 {[%clk 0:02:30.1]} 11.
O-O {[%clk 0:02:06.1]} 11... Bg7 {[%clk 0:02:26.7]} 12. Re1 {[%clk 0:02:05.4]}
12... Qd5 {[%clk 0:02:15.2]} 13. Be4 {[%clk 0:02:03.7]} 13... Qd4 {[%clk
0:02:15.1]} 14. Bxc6+ {[%clk 0:01:57.6]} 14... bxc6 {[%clk 0:02:01.7]} 15. Qxc6+
{[%clk 0:01:58.5]} 15... Bd7 {[%clk 0:02:01.5]} 16. Qxa8+ {[%clk 0:01:58.2]}
16... Ke7 {[%clk 0:02:02]} 17. Qxa7 {[%clk 0:01:56.1]} 17... Rf8 {[%clk
0:01:59.6]} 18. Rf1 {[%clk 0:01:55.6]} 18... Bxe5 {[%clk 0:01:54.6]} 19. d3
{[%clk 0:01:55.6]} 19... Bb8 {[%clk 0:01:38.4]} 20. Bg5+ {[%clk 0:01:48.4]}
20... Kf7 {[%clk 0:01:33.1]} 21. Qb7 {[%clk 0:01:48.5]} 21... Kg8 {[%clk
0:01:24.2]} 22. g3 {[%clk 0:01:35.4]} 22... Qd6 {[%clk 0:01:06.9]} 23. Rae1
{[%clk 0:01:28.9]} 23... Bc6 {[%clk 0:01:01.8]} 24. Qe7 {[%clk 0:01:26.7]} 24...
Qxe7 {[%clk 0:00:32.4]} 25. Bxe7 {[%clk 0:01:27.6]} 25... Re8 {[%clk 0:00:33]}
26. Bxc5 {[%clk 0:01:22.6]} 26... Bd5 {[%clk 0:00:31.9]} 27. b3 {[%clk
0:01:22.2]} 27... Rc8 {[%clk 0:00:31.1]} 28. d4 {[%clk 0:01:22]} 1-0

[Event "Early-Titled-Tuesday-Blitz-May-14-2024"]
[Site "Chess.com"]
[Date "2024.05.14"]
[Round "2"]
[White "guillembaches"]
[Black "miragha_yev"]
[Result "0-1"]
[WhiteElo "2568"]
[BlackElo "2825"]
[TimeControl "180+1"]
[EndTime "8:16:16 PDT"]
[Termination "miragha_yev won on time"]

1. d4 {[%clk 0:03:00.9]} 1... Nf6 {[%clk 0:03:00]} 2. Nf3 {[%clk 0:03:01.2]}
2... c5 {[%clk 0:02:58.4]} 3. d5 {[%clk 0:03:00.1]} 3... b5 {[%clk 0:02:57]} 4.
Bg5 {[%clk 0:02:59.9]} 4... Qb6 {[%clk 0:02:56.3]} 5. Bxf6 {[%clk 0:02:57.9]}
5... Qxf6 {[%clk 0:02:55.3]} 6. c3 {[%clk 0:02:57.8]} 6... d6 {[%clk 0:02:52.9]}
7. e4 {[%clk 0:02:57.7]} 7... a6 {[%clk 0:02:50.7]} 8. a4 {[%clk 0:02:54.3]}
8... b4 {[%clk 0:02:46.2]} 9. Qb3 {[%clk 0:02:41.3]} 9... Nd7 {[%clk 0:02:39.1]}
10. cxb4 {[%clk 0:02:31.2]} 10... cxb4 {[%clk 0:02:40]} 11. Qxb4 {[%clk
0:02:24]} 11... Rb8 {[%clk 0:02:33.7]} 12. Qc3 {[%clk 0:02:21.4]} 12... g6
{[%clk 0:02:28]} 13. Qxf6 {[%clk 0:02:11.7]} 13... Nxf6 {[%clk 0:02:28.9]} 14.
Nbd2 {[%clk 0:02:05.6]} 14... Rxb2 {[%clk 0:02:28.7]} 15. Rc1 {[%clk 0:02:01]}
15... Rb8 {[%clk 0:02:25.4]} 16. Bd3 {[%clk 0:01:56.5]} 16... Bh6 {[%clk
0:02:25.3]} 17. O-O {[%clk 0:01:51.7]} 17... O-O {[%clk 0:02:25.3]} 18. Rc7
{[%clk 0:01:49.1]} 18... Bd7 {[%clk 0:02:24.1]} 19. Bxa6 {[%clk 0:01:41.8]}
19... Bxa4 {[%clk 0:02:18.4]} 20. Rxe7 {[%clk 0:01:38.6]} 20... Rb6 {[%clk
0:02:15.3]} 21. Bd3 {[%clk 0:01:31.3]} 21... Rb4 {[%clk 0:02:13.9]} 22. Nc4
{[%clk 0:01:27.4]} 22... Bb5 {[%clk 0:02:12.7]} 23. Rb7 {[%clk 0:01:19.9]} 23...
Bxc4 {[%clk 0:02:10.4]} 24. Rxb4 {[%clk 0:01:16.2]} 24... Bxd3 {[%clk
0:02:10.6]} 25. Ra1 {[%clk 0:01:16.1]} 25... Bxe4 {[%clk 0:02:09.4]} 26. Ra6
{[%clk 0:01:13.2]} 26... Bxf3 {[%clk 0:01:54.5]} 27. gxf3 {[%clk 0:01:12]} 27...
Nxd5 {[%clk 0:01:54.8]} 28. Rd4 {[%clk 0:01:11.2]} 28... Nf4 {[%clk 0:01:54.4]}
29. Raxd6 {[%clk 0:01:10.1]} 29... Ne2+ {[%clk 0:01:54.6]} 0-1

[Event "Early-Titled-Tuesday-Blitz-May-14-2024"]
[Site "Chess.com"]
[Date "2024.05.14"]
[Round "2"]
[White "Grischuk"]
[Black "Yan_Dyomin2010"]
[Result "1-0"]
[WhiteElo "3100"]
[BlackElo "2671"]
[TimeControl "180+1"]
[EndTime "8:16:26 PDT"]
[Termination "Grischuk won by resignation"]

1. d4 {[%clk 0:03:00.9]} 1... Nf6 {[%clk 0:02:59.4]} 2. c4 {[%clk 0:03:01]} 2...
g6 {[%clk 0:02:59.8]} 3. g3 {[%clk 0:03:00.8]} 3... Bg7 {[%clk 0:02:59.4]} 4.
Bg2 {[%clk 0:03:01.2]} 4... O-O {[%clk 0:02:59.9]} 5. Nc3 {[%clk 0:03:01.8]}
5... d6 {[%clk 0:02:59.3]} 6. Nf3 {[%clk 0:03:02.1]} 6... Nc6 {[%clk 0:02:59.8]}
7. Bf4 {[%clk 0:02:59.7]} 7... Nxd4 {[%clk 0:02:33.6]} 8. Qxd4 {[%clk
0:02:46.4]} 8... e5 {[%clk 0:02:33.8]} 9. Nxe5 {[%clk 0:02:09.6]} 9... dxe5
{[%clk 0:02:34.7]} 10. Qxd8 {[%clk 0:02:04.7]} 10... Rxd8 {[%clk 0:02:35.6]} 11.
Bxe5 {[%clk 0:02:05.1]} 11... c6 {[%clk 0:02:27.3]} 12. O-O {[%clk 0:01:58.5]}
12... Be6 {[%clk 0:02:26.7]} 13. b3 {[%clk 0:01:58.1]} 13... Rd2 {[%clk
0:02:26.6]} 14. Rfd1 {[%clk 0:01:52.1]} 14... Rad8 {[%clk 0:02:26.7]} 15. Rxd2
{[%clk 0:01:39]} 15... Rxd2 {[%clk 0:02:27.6]} 16. Rd1 {[%clk 0:01:39.1]} 16...
Rxd1+ {[%clk 0:02:27.8]} 17. Nxd1 {[%clk 0:01:40]} 17... Nd7 {[%clk 0:02:26.8]}
18. Bxg7 {[%clk 0:01:38.3]} 18... Kxg7 {[%clk 0:02:27.7]} 19. f4 {[%clk
0:01:33.8]} 19... f5 {[%clk 0:02:27.7]} 20. Kf2 {[%clk 0:01:32.7]} 20... Kf6
{[%clk 0:02:27.9]} 21. Nc3 {[%clk 0:01:29.2]} 21... a5 {[%clk 0:02:24.4]} 22.
Ke3 {[%clk 0:01:16.2]} 22... Ke7 {[%clk 0:02:23]} 23. Kd4 {[%clk 0:01:14.4]}
23... c5+ {[%clk 0:02:08.9]} 24. Kd3 {[%clk 0:01:12]} 24... b6 {[%clk
0:02:08.7]} 25. Bd5 {[%clk 0:01:09.9]} 25... Nf6 {[%clk 0:02:05.3]} 26. Bxe6
{[%clk 0:01:09.2]} 26... Kxe6 {[%clk 0:02:06.2]} 27. Na4 {[%clk 0:01:04]} 27...
Nd7 {[%clk 0:01:57]} 28. e4 {[%clk 0:01:04.1]} 28... fxe4+ {[%clk 0:01:55.1]}
29. Kxe4 {[%clk 0:01:05]} 29... Kd6 {[%clk 0:01:54.1]} 30. g4 {[%clk 0:01:02.4]}
30... Kc6 {[%clk 0:01:51.7]} 31. Nc3 {[%clk 0:00:54.7]} 31... Nf6+ {[%clk
0:01:49.6]} 32. Kf3 {[%clk 0:00:55]} 32... h6 {[%clk 0:01:43.4]} 33. h4 {[%clk
0:00:47.7]} 33... h5 {[%clk 0:01:33.3]} 34. g5 {[%clk 0:00:47.6]} 34... Ne8
{[%clk 0:01:30.6]} 35. f5 {[%clk 0:00:41.7]} 35... gxf5 {[%clk 0:01:30.6]} 36.
Kf4 {[%clk 0:00:42.2]} 36... Ng7 {[%clk 0:01:31.2]} 37. Ke5 {[%clk 0:00:40.7]}
37... Kd7 {[%clk 0:01:31.2]} 38. Nd5 {[%clk 0:00:40.5]} 1-0

[Event "Early-Titled-Tuesday-Blitz-May-14-2024"]
[Site "Chess.com"]
[Date "2024.05.14"]
[Round "2"]
[White "vovachesss"]
[Black "manitodeplomo"]
[Result "1-0"]
[WhiteElo "2846"]
[BlackElo "2580"]
[TimeControl "180+1"]
[EndTime "8:16:29 PDT"]
[Termination "vovachesss won by checkmate"]

1. e4 {[%clk 0:03:00.9]} 1... Nc6 {[%clk 0:02:56.5]} 2. Nf3 {[%clk 0:02:59.9]}
2... d5 {[%clk 0:02:56.4]} 3. exd5 {[%clk 0:02:59.9]} 3... Qxd5 {[%clk
0:02:57.3]} 4. Nc3 {[%clk 0:03:00.3]} 4... Qa5 {[%clk 0:02:57.3]} 5. d4 {[%clk
0:02:59.7]} 5... Nf6 {[%clk 0:02:56]} 6. Bb5 {[%clk 0:02:52]} 6... Bd7 {[%clk
0:02:55.1]} 7. d5 {[%clk 0:02:45.1]} 7... Nb4 {[%clk 0:02:54.2]} 8. Bxd7+ {[%clk
0:02:45]} 8... Nxd7 {[%clk 0:02:49.1]} 9. O-O {[%clk 0:02:00.4]} 9... Nf6 {[%clk
0:02:44]} 10. Qe2 {[%clk 0:01:55.2]} 10... Nbxd5 {[%clk 0:02:39.9]} 11. Nxd5
{[%clk 0:01:54.9]} 11... Qxd5 {[%clk 0:02:39.8]} 12. Rd1 {[%clk 0:01:52.8]}
12... Qe4 {[%clk 0:02:35.1]} 13. Qb5+ {[%clk 0:01:52.6]} 13... Qc6 {[%clk
0:02:34.7]} 14. Qb3 {[%clk 0:01:41.1]} 14... e6 {[%clk 0:02:26.1]} 15. Ne5
{[%clk 0:01:14]} 15... Qb6 {[%clk 0:02:08.3]} 16. Qg3 {[%clk 0:01:01.9]} 16...
Be7 {[%clk 0:00:53.1]} 17. Qxg7 {[%clk 0:01:00.8]} 17... Rf8 {[%clk 0:00:52.6]}
18. Bg5 {[%clk 0:00:47.2]} 18... Ne4 {[%clk 0:00:42.6]} 19. Bxe7 {[%clk
0:00:40.3]} 19... Nxf2 {[%clk 0:00:38.6]} 20. Qxf8# {[%clk 0:00:38.7]} 1-0

[Event "Early-Titled-Tuesday-Blitz-May-14-2024"]
[Site "Chess.com"]
[Date "2024.05.14"]
[Round "2"]
[White "grozdanovic_a"]
[Black "malakismayil"]
[Result "1-0"]
[WhiteElo "2333"]
[BlackElo "2528"]
[TimeControl "180+1"]
[EndTime "8:16:30 PDT"]
[Termination "grozdanovic_a won by resignation"]

1. d4 {[%clk 0:03:00.9]} 1... d5 {[%clk 0:02:59]} 2. Nf3 {[%clk 0:03:01.1]} 2...
Nf6 {[%clk 0:02:56]} 3. g3 {[%clk 0:03:01.7]} 3... e6 {[%clk 0:02:55.9]} 4. Bg2
{[%clk 0:03:02.4]} 4... Be7 {[%clk 0:02:55.3]} 5. O-O {[%clk 0:03:02.3]} 5...
O-O {[%clk 0:02:56]} 6. c4 {[%clk 0:03:02.4]} 6... dxc4 {[%clk 0:02:56.6]} 7.
Qc2 {[%clk 0:03:01.4]} 7... c5 {[%clk 0:02:54]} 8. Rd1 {[%clk 0:02:54.7]} 8...
Qb6 {[%clk 0:02:47.7]} 9. Na3 {[%clk 0:02:45.8]} 9... cxd4 {[%clk 0:02:25.9]}
10. Nxc4 {[%clk 0:02:45.7]} 10... Qa6 {[%clk 0:02:20]} 11. Nxd4 {[%clk
0:02:41.8]} 11... Nbd7 {[%clk 0:02:13]} 12. b3 {[%clk 0:02:34.3]} 12... Nb6
{[%clk 0:02:05.7]} 13. Nxb6 {[%clk 0:02:30.7]} 13... Qxb6 {[%clk 0:02:06.6]} 14.
Bb2 {[%clk 0:02:30.8]} 14... Bd7 {[%clk 0:02:05.8]} 15. Rac1 {[%clk 0:02:01.7]}
15... Rac8 {[%clk 0:02:03.3]} 16. Qb1 {[%clk 0:02:02.5]} 16... Bc5 {[%clk
0:02:01]} 17. e3 {[%clk 0:02:02.2]} 17... Rfd8 {[%clk 0:02:00.5]} 18. Nf3 {[%clk
0:01:53.6]} 18... h6 {[%clk 0:01:26.8]} 19. Ne5 {[%clk 0:01:44.4]} 19... Be8
{[%clk 0:01:20.2]} 20. Nc4 {[%clk 0:01:41.1]} 20... Qa6 {[%clk 0:01:13.9]} 21.
Bxf6 {[%clk 0:01:40.4]} 21... gxf6 {[%clk 0:01:14.8]} 22. Qb2 {[%clk 0:01:37.6]}
22... b5 {[%clk 0:01:10.7]} 23. Rxd8 {[%clk 0:01:35]} 23... Rxd8 {[%clk
0:01:10.2]} 24. Qxf6 {[%clk 0:01:30.8]} 24... Rc8 {[%clk 0:01:01.7]} 25. Qxh6
{[%clk 0:01:07.9]} 25... bxc4 {[%clk 0:00:59.3]} 26. Be4 {[%clk 0:01:08.6]}
26... f5 {[%clk 0:00:48.5]} 27. Bxf5 {[%clk 0:01:08.6]} 27... Rc7 {[%clk
0:00:37.9]} 28. Bxe6+ {[%clk 0:01:04.5]} 28... Bf7 {[%clk 0:00:36.6]} 29. Bxf7+
{[%clk 0:01:04.8]} 29... Rxf7 {[%clk 0:00:36.8]} 30. Qxa6 {[%clk 0:01:05.5]} 1-0